bitfinex/quotes_ETHUSD_20241101
["timestamp","ask_amount","ask_price","bid_price","bid_amount"]
[1730449364033,3.98009,2512.5,2512.0,4.14903076]
[1730449364342,3.98009,2512.5,2512.4,0.0357201]
[1730449364536,3.98034,2512.4,2512.2,3.33913076]
[1730449365444,4.87200451,2512.5,2512.0,4.14903076]
[1730449365645,3.9807,2512.2,2511.8,4.13433076]
[1730449365852,3.9807,2512.2,2511.6,3.98146]
[1730449365853,3.9807,2512.2,2511.6,4.13823076]
[1730449366181,3.9809,2512.0,2511.6,4.13823076]
[1730449366677,3.9807,2512.2,2511.6,4.13823076]
[1730449366882,4.46055,2512.2,2511.7,3.98135]
[1730449367037,3.9807,2512.2,2511.8,3.33913076]
[1730449367234,3.9807,2512.2,2512.0,3.33913076]
[1730449368074,3.9807,2512.2,2511.8,3.33913076]
[1730449369678,3.9809,2512.0,2511.8,3.33913076]
[1730449370568,3.9807,2512.2,2511.8,3.33913076]
[1730449370766,8.44127,2512.2,2511.8,3.33913076]
[1730449370976,0.8025,2511.5,2510.4,3.33913076]
[1730449371286,0.8025,2511.5,2509.8,4.75969]
[1730449371287,3.98301,2510.7,2509.8,4.75969]
[1730449371581,3.98301,2510.7,2509.7,3.34913076]
[1730449371582,3.98301,2510.7,2510.3,0.7754]
[1730449371944,4.78529,2510.8,2510.3,0.7754]
[1730449373205,3.98302,2510.7,2510.3,0.7754]
[1730449373484,3.98318,2510.6,2510.3,0.7754]
[1730449374486,3.98347,2510.4,2510.0,0.7754]
[1730449376194,3.98314,2510.6,2510.0,0.7754]
[1730449376195,3.98314,2510.6,2510.0,4.75935]
[1730449376360,3.98314,2510.6,2510.1,0.0796479]
[1730449376557,3.98225,2511.2,2510.3,3.98355]
[1730449376558,0.7877,2511.0,2510.3,3.98355]
[1730449376772,3.98258,2511.0,2510.4,4.83933654]
[1730449378468,3.98232,2511.1,2510.5,3.98326]
[1730449378683,4.76993,2511.2,2510.6,4.06272374]
[1730449378992,5.195539,2511.2,2510.6,4.06272374]
[1730449379294,3.98231,2511.1,2510.5,3.98326]
[1730449379589,3.98223,2511.2,2510.7,3.98293]
[1730449379999,3.98223,2511.2,2510.5,7.32239076]
[1730449380000,7.96452,2511.2,2510.5,11.30555076]
[1730449380358,4.77592,2511.4,2510.5,3.33913076]
[1730449380592,3.98216,2511.2,2510.8,0.7909]
[1730449381981,4.77592,2511.4,2510.8,0.7909]
[1730449381982,7.1869451,2511.6,2510.9,3.33913076]
[1730449382181,7.1869451,2511.6,2511.0,3.98247]
[1730449382182,6.4263451,2511.6,2511.0,3.98247]
[1730449382572,6.4263451,2511.6,2511.0,7.96485]
[1730449382767,6.4263451,2511.6,2511.0,3.98238]
[1730449382969,2.4447551,2511.6,2511.3,0.8288]
[1730449383705,2.4447551,2511.6,2511.0,3.98238]
[1730449383706,6.4263151,2511.6,2511.0,4.74668]
[1730449384000,3.98177,2511.5,2511.0,4.74668]
[1730449384791,6.4263151,2511.6,2511.0,4.74668]
[1730449385298,3.98156,2511.6,2511.0,4.74668]
[1730449385498,3.98156,2511.6,2511.1,3.98228]
[1730449386803,7.96264,2511.8,2511.1,3.98228]
[1730449386978,3.98145,2511.7,2511.2,0.03691043]
[1730449387396,3.98145,2511.7,2511.1,3.98228]
[1730449387908,3.98114,2511.9,2511.4,0.8157]
[1730449388111,3.98099,2512.0,2511.4,4.79738]
[1730449388873,3.98058,2512.2,2511.4,4.79738]
[1730449389074,3.98058,2512.2,2511.6,3.98137]
[1730449389310,3.98058,2512.2,2511.7,0.8157]
[1730449389622,3.98035,2512.4,2511.9,3.98096]
[1730449389911,3.98002,2512.6,2511.9,3.98096]
[1730449389912,7.9601,2512.6,2512.0,4.00880973]
[1730449390081,3.98012,2512.5,2511.9,0.05772959]
[1730449390286,3.98012,2512.5,2511.8,3.98109]
[1730449390287,7.96109,2512.3,2511.7,0.8157]
[1730449390507,3.98082,2512.1,2511.7,0.8157]
[1730449390695,3.98107,2511.9,2511.4,4.76974]
[1730449390906,3.98107,2511.9,2511.4,0.788]
[1730449391128,3.98125,2511.8,2511.4,0.788]
[1730449391278,3.98107,2511.9,2511.4,0.788]
[1730449392378,3.98121,2511.8,2511.4,0.788]
[1730449392573,4.777438,2511.8,2511.4,0.788]
[1730449393578,0.796228,2511.8,2511.4,0.788]
[1730449393780,3.98107,2511.9,2511.5,0.07961134]
[1730449394811,3.98126,2511.8,2511.5,0.07961134]
[1730449395197,3.98126,2511.8,2511.4,0.788]
[1730449395881,3.98107,2511.9,2511.4,0.788]
[1730449396425,3.98121,2511.8,2511.5,0.07961129]
[1730449396715,4.777438,2511.8,2511.5,0.07961129]
[1730449396912,4.777438,2511.8,2511.4,0.788]
[1730449398394,0.796228,2511.8,2511.4,0.788]
[1730449398717,7.96221,2511.9,2511.4,0.788]
[1730449398920,3.98107,2511.9,2511.4,0.788]
[1730449399094,3.98107,2511.9,2511.4,0.86761198]
[1730449399489,3.98107,2511.9,2511.4,4.84943198]
[1730449400718,0.398082,2512.1,2511.7,3.98135]
[1730449401588,0.398082,2512.1,2511.6,3.98137]
[1730449401589,4.378832,2512.1,2511.6,3.98137]
[1730449401981,0.4378832,2512.0,2511.6,3.98137]
[1730449402520,3.98114,2511.9,2511.4,4.76979]
[1730449402687,3.98121,2511.8,2511.4,0.788]
[1730449404993,3.98114,2511.9,2511.4,0.788]
[1730449405220,0.44190232,2511.8,2511.4,0.788]
[1730449406011,0.44190232,2511.8,2511.4,4.76982]
[1730449406234,0.4378832,2512.0,2511.5,4.0612727]
[1730449406594,4.4187832,2512.0,2511.5,4.0612727]
[1730449406949,3.98115,2511.9,2511.5,0.0796127]
[1730449407228,4.77794,2511.8,2511.2,8.79377]
[1730449407408,5.21984332,2511.8,2511.2,4.81167]
[1730449407595,3.98137,2511.7,2511.2,4.81167]
[1730449407797,3.98137,2511.7,2511.2,8.79374]
[1730449407991,1.23850332,2511.8,2511.3,3.98199]
[1730449409218,0.4378832,2512.0,2511.5,0.7506]
[1730449409404,4.4187832,2512.0,2511.6,0.07961033]
[1730449409791,3.98107,2511.9,2511.6,0.07961033]
[1730449410425,3.98106,2511.9,2511.6,0.07961033]
[1730449410827,0.4378832,2512.0,2511.6,0.07961033]
[1730449411642,3.98083,2512.1,2511.6,8.04246033]
[1730449411808,3.98083,2512.1,2511.6,7.96285]
[1730449412006,3.98083,2512.1,2511.6,3.98142]
[1730449412231,3.98045,2512.3,2511.7,3.98136]
[1730449412648,7.96096,2512.3,2511.7,3.98136]
[1730449412821,3.98062,2512.2,2511.7,3.98136]
[1730449413121,4.859677,2512.2,2511.7,3.98136]
[1730449414123,0.879057,2512.2,2511.8,0.7537]
[1730449414444,3.34167058,2512.8,2511.8,0.7537]
[1730449414445,3.98022,2512.5,2511.9,4.06060406]
[1730449414649,0.876856,2512.4,2511.9,4.06060406]
[1730449414821,3.97994,2512.6,2512.0,3.98088]
[1730449415028,3.97968,2512.8,2512.2,4.74505]
[1730449415419,3.9794,2513.0,2512.5,0.7645]
[1730449416158,3.97947,2512.9,2512.5,0.7645]
[1730449417955,3.97979,2512.7,2512.5,0.7645]
[1730449418155,3.97962,2512.8,2512.5,0.7645]
[1730449418355,3.98023,2512.5,2512.2,0.7929]
[1730449418666,7.96042,2512.5,2512.2,0.7929]
[1730449418859,3.98019,2512.5,2512.2,0.7929]
[1730449419560,3.98025,2512.4,2512.0,0.7929]
[1730449419733,3.98069,2512.2,2512.0,0.7929]
[1730449420059,3.98073,2512.1,2511.6,0.7929]
[1730449420246,3.98101,2512.0,2511.6,0.7929]
[1730449420451,3.98073,2512.1,2511.6,0.7929]
[1730449422156,3.98097,2512.0,2511.6,0.7929]
[1730449422659,3.98112,2511.9,2511.6,0.7929]
[1730449423254,3.98097,2512.0,2511.6,0.7929]
[1730449423954,3.98106,2511.9,2511.6,0.7929]
[1730449424124,3.98136,2511.7,2511.6,0.7929]
[1730449425381,4.379166,2511.9,2511.5,0.07961543]
[1730449425586,4.378535,2512.3,2511.6,4.80363]
[1730449425788,3.98027,2512.4,2511.9,3.34167058]
[1730449425945,3.98027,2512.4,2511.9,7.32270058]
[1730449426645,3.98027,2512.4,2511.9,3.34167058]
[1730449426973,3.98027,2512.4,2511.9,7.32257058]
[1730449428280,3.98027,2512.4,2511.8,0.8112]
[1730449428281,4.776301,2512.4,2511.8,0.8112]
[1730449428582,0.796031,2512.4,2511.8,0.8112]
[1730449428785,3.98082,2512.1,2511.8,0.8112]
[1730449431585,3.98047,2512.3,2511.8,0.8112]
[1730449431782,3.98047,2512.3,2511.9,0.07960463]
[1730449432478,3.98019,2512.5,2512.0,0.8259]
[1730449432847,7.96041,2512.5,2512.0,0.8259]
[1730449433050,3.98019,2512.5,2512.0,0.8259]
[1730449433251,7.96038,2512.5,2512.0,0.8259]
[1730449433584,3.98025,2512.4,2512.0,0.8259]
[1730449435248,3.98019,2512.5,2512.0,0.8259]
[1730449435449,7.96044,2512.5,2512.0,0.8259]
[1730449435748,3.9803,2512.4,2512.0,0.8259]
[1730449436886,4.854234,2512.5,2512.0,0.8259]
[1730449437084,3.98026,2512.4,2512.0,0.8259]
[1730449437861,3.98066,2512.2,2512.0,0.8259]
[1730449438690,3.9805,2512.3,2512.0,0.8259]
[1730449438891,4.4659294,2512.3,2512.0,0.8259]
[1730449439199,4.4659294,2512.3,2512.1,0.02917233]
[1730449440208,4.4659294,2512.3,2512.0,0.8259]
[1730449440500,0.4854294,2512.3,2512.1,0.02424958]
[1730449440671,0.4854294,2512.3,2512.1,0.05848832]
[1730449441280,3.98025,2512.4,2512.0,0.8259]
[1730449441765,7.96061,2512.4,2512.0,0.8259]
[1730449441963,7.96063,2512.4,2512.0,0.8259]
[1730449442185,3.98054,2512.3,2512.0,0.8259]
[1730449442499,7.96125,2512.2,2511.7,0.8326]
[1730449442707,4.776705,2512.2,2511.7,0.8326]
[1730449442868,3.98058,2512.2,2511.7,4.81395]
[1730449444795,0.7648,2512.3,2511.7,0.8326]
[1730449445111,3.98106,2511.9,2511.7,0.8326]
[1730449445501,7.9616,2512.1,2511.5,3.98168]
[1730449445704,7.9616,2512.1,2511.5,4.74098]
[1730449445865,0.79616,2512.0,2511.5,0.7593]
[1730449446067,3.98073,2512.1,2511.5,0.7593]
[1730449446306,3.9809,2512.0,2511.5,4.74097]
[1730449447617,3.98069,2512.2,2511.6,3.98151]
[1730449447821,3.98069,2512.2,2511.7,0.07961196]
[1730449448197,4.74533,2512.3,2511.7,0.07961196]
[1730449448393,3.98059,2512.2,2511.7,3.98136]
[1730449448991,1.3267374,2512.3,2511.6,3.98143]
[1730449449318,7.96168,2512.1,2511.6,3.98143]
[1730449449483,3.98081,2512.1,2511.6,3.98143]
[1730449449684,3.98097,2512.0,2511.5,0.7593]
[1730449450307,3.98097,2512.0,2511.5,4.7409]
[1730449451886,7.96165,2512.1,2511.6,4.06110567]
[1730449452086,3.98081,2512.1,2511.6,4.06110567]
[1730449452488,3.98081,2512.1,2511.6,3.98144]
[1730449453024,3.98092,2512.0,2511.5,4.74092]
[1730449453496,3.98105,2511.9,2511.5,0.7593]
[1730449453819,3.98105,2511.9,2511.5,4.74098]
[1730449454126,3.98081,2512.1,2511.5,4.74098]
[1730449454720,4.74533,2512.3,2511.6,4.06105478]
[1730449454924,3.63912208,2512.8,2511.9,0.7601]
[1730449454925,4.77529,2512.5,2511.9,0.7601]
[1730449455133,4.77529,2512.5,2511.9,8.72196]
[1730449455339,4.77528,2512.5,2511.9,4.74103]
[1730449455532,4.77528,2512.5,2512.0,3.98088]
[1730449456406,0.36491221,2512.7,2512.2,3.98056]
[1730449456710,0.36491221,2512.7,2512.3,0.07959679]
[1730449457050,7.18958577,2513.6,2512.6,3.97989]
[1730449457214,7.18958577,2513.6,2512.7,4.24205489]
[1730449457215,0.8325,2513.5,2512.7,4.24205489]
[1730449457539,3.97927,2513.1,2512.7,0.8208]
[1730449457698,4.775096,2513.1,2512.7,0.8208]
[1730449458435,0.795826,2513.1,2512.7,0.8208]
[1730449458644,3.97899,2513.2,2512.7,0.8208]
[1730449458815,3.97921,2513.1,2512.7,0.8208]
[1730449459340,3.97923,2513.1,2512.7,0.8208]
[1730449459733,3.97934,2513.0,2512.7,0.8208]
[1730449459933,4.775173,2513.0,2512.5,0.77]
[1730449460103,3.97957,2512.9,2512.5,0.77]
[1730449460305,3.97977,2512.8,2512.5,0.77]
[1730449463015,3.97957,2512.9,2512.5,0.77]
[1730449463211,3.97962,2512.8,2512.5,0.77]
[1730449463406,3.97957,2512.9,2512.5,0.77]
[1730449463648,7.95913,2512.9,2512.5,0.77]
[1730449464012,3.97956,2512.9,2512.5,0.77]
[1730449464213,3.97971,2512.8,2512.5,0.77]
[1730449465318,3.97956,2512.9,2512.5,0.77]
[1730449465640,8.432186,2512.9,2512.5,0.77]
[1730449465819,4.452626,2512.9,2512.5,0.77]
[1730449469958,0.62912208,2513.4,2512.7,3.97962]
[1730449469959,3.97894,2513.3,2512.7,3.97962]
[1730449470124,3.97894,2513.3,2512.8,0.7808]
[1730449470525,3.97879,2513.4,2512.8,8.10207058]
[1730449470772,7.95755,2513.4,2512.8,8.10207058]
[1730449471056,9.128335,2513.4,2512.8,8.10207058]
[1730449471215,5.149545,2513.4,2512.8,8.10207058]
[1730449471624,7.95753,2513.4,2512.9,3.97946]
[1730449472319,3.97884,2513.3,2512.8,8.10204058]
[1730449473317,3.97876,2513.4,2513.0,0.7719]
[1730449473850,0.7503,2513.6,2513.0,0.7719]
[1730449474054,3.97906,2513.2,2513.0,0.7719]
[1730449474936,7.95748,2513.4,2513.0,0.7719]
[1730449475151,3.97883,2513.3,2513.0,0.7719]
[1730449475321,4.91236021,2513.4,2513.0,0.7719]
[1730449475516,3.97901,2513.2,2513.0,0.7719]
[1730449477260,8.89126021,2513.4,2513.0,0.7719]
[1730449477557,3.979,2513.2,2513.0,0.7719]
[1730449478339,3.97891,2513.3,2513.0,0.7719]
[1730449478557,4.86804602,2513.3,2513.0,0.7719]
[1730449479064,3.979,2513.2,2513.0,0.7719]
[1730449479726,4.86797602,2513.3,2513.0,0.7719]
[1730449480135,0.88913602,2513.3,2513.0,0.7719]
[1730449480339,3.97893,2513.3,2513.0,0.7719]
[1730449480961,3.97876,2513.4,2513.0,0.7719]
[1730449481307,3.97902,2513.2,2513.0,0.7719]
[1730449484867,3.97877,2513.4,2513.0,0.7719]
[1730449485236,7.95753,2513.4,2513.0,0.7719]
[1730449485436,8.828313,2513.4,2513.0,0.7719]
[1730449485769,4.849543,2513.4,2513.0,0.7719]
[1730449486080,3.97891,2513.3,2513.0,0.7719]
[1730449487866,4.849543,2513.4,2513.0,0.7719]
[1730449488066,3.9786,2513.5,2513.0,4.83069393]
[1730449488266,7.95693,2513.6,2513.0,4.7511]
[1730449488470,3.97854,2513.5,2513.0,4.7511]
[1730449489789,3.97863,2513.5,2513.0,4.7511]
[1730449490573,3.97914,2513.1,2513.0,0.7719]
[1730449490778,3.97914,2513.1,2512.6,3.754]
[1730449490779,7.95841,2513.1,2512.6,3.754]
[1730449490935,0.783,2513.4,2512.6,0.754]
[1730449491295,3.97954,2512.9,2512.6,0.754]
[1730449496587,3.97978,2512.7,2512.3,0.8172]
[1730449497818,7.95915,2512.9,2512.3,4.79759]
[1730449497980,3.9797,2512.8,2512.3,0.8172]
[1730449498964,3.9797,2512.8,2512.3,4.79758]
[1730449499168,3.97954,2512.9,2512.4,7.32191058]
[1730449499662,3.97964,2512.8,2512.4,3.34167058]
[1730449499865,3.97954,2512.9,2512.4,3.34167058]
[1730449500297,3.97924,2513.1,2512.5,0.7501]
[1730449500499,3.97899,2513.2,2512.7,0.7501]
[1730449500730,3.97914,2513.1,2512.7,0.7501]
[1730449501221,3.97941,2513.0,2512.7,0.7501]
[1730449502212,3.97914,2513.1,2512.7,0.7501]
[1730449502623,7.95839,2513.1,2512.7,0.7501]
[1730449503239,3.97949,2512.9,2512.5,0.8257]
[1730449503393,7.9591,2512.9,2512.5,0.8257]
[1730449503602,3.97949,2512.9,2512.5,0.8257]
[1730449504506,3.97949,2512.9,2512.7,1.49449133]
[1730449508519,3.97962,2512.8,2512.5,2.32019133]
[1730449508727,3.97994,2512.6,2512.5,2.32019133]
[1730449509238,3.97994,2512.6,2512.5,1.49449133]
[1730449512505,7.95936,2512.8,2512.5,1.49449133]
[1730449512702,0.7935,2513.3,2512.7,1.49449133]
[1730449513016,4.77234,2513.3,2513.1,1.49449133]
[1730449513217,3.97873,2513.4,2513.1,1.49449133]
[1730449514048,4.78121,2513.5,2513.1,1.49449133]
[1730449514049,3.97892,2513.3,2513.1,1.49449133]
[1730449514352,3.97891,2513.3,2513.1,1.49449133]
[1730449514634,3.97891,2513.3,2513.0,0.8032]
[1730449515262,3.97891,2513.3,2512.7,0.8032]
[1730449515558,3.97924,2513.1,2512.7,0.8032]
[1730449515960,3.97933,2513.0,2512.7,0.8032]
[1730449516126,3.97924,2513.1,2512.7,0.8032]
[1730449517649,7.95851,2513.1,2512.7,0.8032]
[1730449517850,3.97924,2513.1,2512.7,0.8032]
[1730449518045,7.95848,2513.1,2512.7,0.8032]
[1730449518255,3.9793,2513.0,2512.7,0.8032]
[1730449518911,3.9796,2512.9,2512.7,0.8032]
[1730449519431,3.9796,2512.9,2512.4,0.7907]
[1730449519641,3.9796,2512.9,2512.4,4.77095]
[1730449519970,3.97964,2512.8,2512.4,0.7907]
[1730449520261,3.97964,2512.8,2512.4,4.77094]
[1730449520763,3.97964,2512.8,2512.4,8.10922055]
[1730449520949,3.97947,2512.9,2512.4,8.10922055]
[1730449521157,3.9793,2513.0,2512.4,0.7907]
[1730449521355,7.96008,2512.6,2512.4,0.7907]
[1730449521525,3.98003,2512.6,2512.4,0.7907]
[1730449521726,3.98034,2512.4,2511.9,0.7797]
[1730449522274,7.96041,2512.5,2511.9,4.7607]
[1730449522645,3.98018,2512.5,2511.9,8.09898055]
[1730449522981,3.98029,2512.4,2511.9,8.09898055]
[1730449523347,3.98018,2512.5,2511.9,4.11798055]
[1730449523348,3.98043,2512.3,2511.9,4.11798055]
[1730449523777,3.98059,2512.2,2511.9,0.7797]
[1730449523974,3.98075,2512.1,2511.7,0.8078]
[1730449524349,3.98097,2512.0,2511.7,0.8078]
[1730449524980,7.96199,2512.0,2511.7,0.8078]
[1730449525185,3.98097,2512.0,2511.7,0.8078]
[1730449525589,3.98097,2512.0,2511.5,3.33828055]
[1730449525590,3.98106,2511.9,2511.5,0.7631]
[1730449525888,4.8642832,2512.0,2511.5,0.7631]
[1730449526074,3.98097,2512.0,2511.5,4.18100577]
[1730449526246,3.98097,2512.0,2511.5,8.16264577]
[1730449526456,3.98097,2512.0,2511.5,8.08300055]
[1730449527592,3.98097,2512.0,2511.5,4.10138055]
[1730449527882,3.98106,2511.9,2511.5,4.10138055]
[1730449528254,3.98097,2512.0,2511.5,4.10138055]
[1730449528652,3.98097,2512.0,2511.5,0.7631]
[1730449528653,0.7835,2511.9,2511.5,0.7631]
[1730449528868,7.96254,2511.8,2511.3,0.8104]
[1730449529483,3.98121,2511.8,2511.3,0.8104]
[1730449529682,3.98121,2511.8,2511.3,4.79236]
[1730449529995,3.98121,2511.8,2511.3,8.21027098]
[1730449530283,3.98121,2511.8,2511.3,8.13064055]
[1730449531490,3.98121,2511.8,2511.3,4.14868055]
[1730449532581,3.98121,2511.8,2511.3,8.13067055]
[1730449532895,7.96256,2511.8,2511.3,4.14868055]
[1730449533054,3.98121,2511.8,2511.3,4.14868055]
[1730449533564,3.98121,2511.8,2511.3,8.13067055]
[1730449534086,3.98121,2511.8,2511.3,4.14868055]
[1730449534259,7.96257,2511.8,2511.3,4.14868055]
[1730449534465,3.98121,2511.8,2511.3,4.14868055]
[1730449535409,3.98137,2511.7,2511.3,4.14868055]
[1730449535559,3.98121,2511.8,2511.3,4.14868055]
[1730449536492,3.98137,2511.7,2511.3,4.14868055]
[1730449536865,3.98121,2511.8,2511.3,4.14868055]
[1730449538304,3.98099,2512.0,2511.1,0.41549448]
[1730449538305,3.98099,2512.0,2511.5,3.33828055]
[1730449538609,3.98077,2512.1,2511.8,0.8021]
[1730449538781,3.9809,2512.0,2511.8,0.8021]
[1730449538984,3.9809,2512.0,2511.6,0.8021]
[1730449544113,3.98114,2511.9,2511.6,0.8021]
[1730449544294,3.98114,2511.9,2511.5,3.33828055]
[1730449547812,3.98105,2511.9,2511.5,3.33828055]
[1730449548516,3.98105,2511.9,2511.7,1.49563822]
[1730449549940,3.9812,2511.8,2511.7,1.49563822]
[1730449550079,3.9814,2511.7,2511.5,1.49563822]
[1730449550515,3.98152,2511.6,2511.5,1.49563822]
[1730449550733,3.98152,2511.6,2511.3,1.49563822]
[1730449551091,3.9814,2511.7,2511.3,1.49563822]
[1730449551529,0.8186,2511.8,2511.2,0.7616]
[1730449551530,0.8186,2511.8,2511.5,1.49563822]
[1730449551730,3.98114,2511.9,2511.7,1.49563822]
[1730449552733,3.98114,2511.9,2511.6,0.815]
[1730449552936,3.98121,2511.8,2511.6,0.815]
[1730449553099,4.75581,2511.8,2511.3,3.98198]
[1730449553301,3.98137,2511.7,2511.2,4.1116245]
[1730449553630,3.98137,2511.7,2511.2,8.0937645]
[1730449554132,0.7746,2511.8,2511.3,3.98199]
[1730449554335,0.7746,2511.8,2511.3,7.9639]
[1730449554495,4.75588,2511.8,2511.3,3.98191]
[1730449556195,0.7746,2511.8,2511.3,3.98191]
[1730449556396,4.75584,2511.8,2511.3,3.98188]
[1730449559815,3.98136,2511.7,2511.3,3.98188]
[1730449560733,3.98136,2511.7,2511.2,4.1116245]
[1730449561054,0.7746,2511.8,2511.3,3.9819]
[1730449561234,3.98089,2512.0,2511.3,3.9819]
[1730449561461,3.98089,2512.0,2511.5,7.3234245]
[1730449561615,3.98029,2512.4,2511.9,4.78323]
[1730449561616,0.8182,2512.4,2511.9,4.78323]
[1730449561813,3.97992,2512.7,2512.3,3.3418245]
[1730449562051,3.97992,2512.7,2512.1,7.3224745]
[1730449562251,3.98019,2512.5,2512.1,3.3418245]
[1730449562454,3.98019,2512.5,2511.9,8.1249545]
[1730449562663,8.73723,2512.5,2511.9,8.1249545]
[1730449562828,3.98043,2512.3,2511.9,0.8022]
[1730449563351,3.98083,2512.1,2511.5,7.3233545]
[1730449563556,3.98083,2512.1,2511.6,0.7958]
[1730449563860,3.98083,2512.1,2511.6,4.77729]
[1730449564059,3.98083,2512.1,2511.6,0.7958]
[1730449564958,3.9809,2512.0,2511.6,0.7958]
[1730449565525,7.96171,2512.1,2511.6,0.7958]
[1730449565764,4.857541,2512.1,2511.6,0.7958]
[1730449566955,3.98097,2512.0,2511.6,0.7958]
[1730449567156,4.857541,2512.1,2511.6,0.7958]
[1730449567822,8.838421,2512.1,2511.6,0.7958]
[1730449568022,3.98109,2511.9,2511.5,3.3418245]
[1730449568363,7.96222,2511.9,2511.5,3.63788478]
[1730449568522,7.96222,2511.9,2511.5,3.3418245]
[1730449568523,3.98109,2511.9,2511.5,3.3418245]
[1730449568853,3.98181,2511.5,2511.2,0.8312]
[1730449569056,7.96363,2511.5,2511.2,0.8312]
[1730449569365,0.7833,2511.6,2511.0,0.29620787]
[1730449569568,3.98231,2511.1,2510.8,0.7937]
[1730449569733,3.98231,2511.1,2510.6,4.26011644]
[1730449569734,4.76561,2511.1,2510.6,4.26011644]
[1730449569925,4.76561,2511.1,2510.6,4.55653069]
[1730449570122,0.7833,2511.1,2511.0,3.98247]
[1730449570340,0.8055,2511.5,2510.9,3.98262]
[1730449570567,4.78727,2511.5,2511.0,4.1356245]
[1730449570727,3.98158,2511.6,2511.2,3.3418245]
[1730449570928,0.8055,2511.8,2511.4,3.3418245]
[1730449571123,3.98113,2511.9,2511.4,4.0969245]
[1730449571764,3.98125,2511.8,2511.4,4.0969245]
[1730449571925,3.98113,2511.9,2511.4,4.0969245]
[1730449572436,7.96231,2511.9,2511.4,4.0969245]
[1730449572628,3.98123,2511.8,2511.4,4.0969245]
[1730449572829,3.98113,2511.9,2511.4,4.0969245]
[1730449573240,7.96233,2511.9,2511.4,4.0969245]
[1730449573420,3.98137,2511.7,2511.4,4.0969245]
[1730449575643,3.98137,2511.7,2511.4,0.7551]
[1730449576433,3.98153,2511.6,2511.2,3.3418245]
[1730449577431,3.98137,2511.7,2511.2,3.3418245]
[1730449577639,3.98161,2511.6,2511.2,3.3418245]
[1730449578871,3.98137,2511.7,2511.2,3.3418245]
[1730449580577,3.98137,2511.7,2511.2,3.3418245]
[1730449580943,3.98168,2511.6,2511.2,3.3418245]
[1730449583179,3.9816,2511.6,2511.1,0.8304]
[1730449583385,3.98198,2511.4,2511.1,0.8304]
[1730449584363,3.98203,2511.3,2511.1,0.8304]
[1730449584978,3.98198,2511.4,2511.1,0.8304]
[1730449586581,3.98163,2511.6,2511.2,3.3418245]
[1730449587094,3.98192,2511.4,2510.9,3.3418245]
[1730449588181,3.9814,2511.7,2511.2,7.3239545]
[1730449588389,3.98114,2511.9,2511.5,3.3418245]
[1730449589097,3.98129,2511.8,2511.5,3.3418245]
[1730449589263,3.98145,2511.7,2511.3,0.7606]
[1730449589454,7.96291,2511.7,2511.3,0.7606]
[1730449589662,3.98145,2511.7,2511.3,0.7606]
[1730449590773,3.98115,2511.9,2511.3,4.74258]
[1730449590990,3.98114,2511.9,2511.5,3.3418245]
[1730449591186,3.98084,2512.1,2511.7,3.3418245]
[1730449591466,5.37333671,2512.5,2511.9,3.3418245]
[1730449591683,3.98014,2512.5,2512.0,0.8023]
[1730449591869,3.98014,2512.5,2512.1,3.3418245]
[1730449592791,7.96037,2512.5,2512.1,3.3418245]
[1730449592993,3.98014,2512.5,2512.1,3.3418245]
[1730449594185,4.76861,2512.7,2512.1,7.3225445]
[1730449594397,3.97981,2512.7,2512.2,3.98055]
[1730449594573,4.856627,2512.7,2512.2,3.98055]
[1730449595058,4.856627,2512.7,2512.1,7.3224645]
[1730449595793,4.856627,2512.7,2512.1,11.3031045]
[1730449596381,4.856627,2512.7,2512.1,7.3224645]
[1730449597292,8.836507,2512.7,2512.1,7.3224645]
[1730449597496,4.856627,2512.7,2512.1,3.3418245]
[1730449597692,3.98003,2512.6,2512.1,3.3418245]
[1730449597852,3.98023,2512.5,2512.0,0.8023]
[1730449598691,7.96047,2512.5,2512.0,0.8023]
[1730449599478,3.98023,2512.5,2512.0,0.8023]
[1730449600056,7.96046,2512.5,2512.0,0.8023]
[1730449600460,3.98023,2512.5,2512.0,0.8023]
[1730449601167,3.98023,2512.5,2512.0,4.7831]
[1730449601692,3.98023,2512.5,2512.0,0.8023]
[1730449601896,7.96048,2512.5,2512.0,0.8023]
[1730449602093,3.98051,2512.3,2512.0,0.8023]
[1730449602589,7.96103,2512.3,2512.0,0.8023]
[1730449602764,3.98051,2512.3,2512.0,0.8023]
[1730449603175,3.98086,2512.1,2511.6,0.7755]
[1730449603524,3.98091,2512.0,2511.6,0.7755]
[1730449604285,3.98086,2512.1,2511.6,0.7755]
[1730449604570,3.98084,2512.1,2511.6,0.7755]
[1730449605507,8.757836,2512.1,2511.6,0.7755]
[1730449605666,4.776976,2512.1,2511.6,0.7755]
[1730449605866,7.96231,2511.9,2511.5,3.3418245]
[1730449606089,7.96228,2511.9,2511.5,3.3418245]
[1730449606282,3.98114,2511.9,2511.5,3.3418245]
[1730449607674,9.522426,2512.1,2511.5,7.3234945]
[1730449607872,5.541546,2512.1,2511.5,3.3418245]
[1730449608181,3.98097,2512.0,2511.5,3.3418245]
[1730449608398,0.7719,2512.9,2512.1,3.98072]
[1730449608566,3.97986,2512.7,2512.2,3.3418245]
[1730449608766,4.455036,2512.7,2512.2,3.3418245]
[1730449609199,4.455036,2512.7,2512.2,7.3223745]
[1730449609386,4.75145,2512.9,2512.3,0.75]
[1730449609688,3.97982,2512.7,2512.3,0.75]
[1730449609999,3.97981,2512.7,2512.3,0.75]
[1730449612813,3.98003,2512.6,2512.1,0.8071]
[1730449613410,3.9799,2512.7,2512.1,0.8071]
[1730449613596,8.43495,2512.7,2512.1,4.78777]
[1730449613796,4.45505,2512.7,2512.1,4.78777]
[1730449615109,3.98005,2512.6,2512.1,0.8071]
[1730449615625,3.98005,2512.6,2512.1,4.78769]